bitfinex/quotes_BTCUSD_20250730
["timestamp","ask_amount","ask_price","bid_price","bid_amount"]
[1753859719064,0.00219818,118390.0,118380.0,0.47858337]
[1753859719285,0.00219818,118390.0,118380.0,0.7872336]
[1753859719506,0.00219818,118390.0,118380.0,0.70875359]
[1753859719785,0.00219818,118390.0,118380.0,0.83723359]
[1753859720650,0.00022818,118390.0,118380.0,0.83723359]
[1753859721942,0.0918519,118400.0,118390.0,0.05844657]
[1753859722153,0.0939819,118400.0,118390.0,0.5800541]
[1753859722605,0.0939819,118400.0,118390.0,0.58005417]
[1753859723263,0.0939824,118400.0,118390.0,0.57260752]
[1753859723480,0.08553653,118400.0,118390.0,0.26395729]
[1753859723739,0.0739808,118400.0,118390.0,0.5810541]
[1753859724188,0.0739808,118400.0,118390.0,0.58105417]
[1753859724410,0.0824266,118400.0,118390.0,0.57260752]
[1753859724855,0.1174066,118400.0,118390.0,0.57260752]
[1753859725071,0.11741986,118400.0,118390.0,0.57260752]
[1753859725543,0.1258658,118400.0,118390.0,0.57260752]
[1753859725743,0.1258658,118400.0,118390.0,0.26395729]
[1753859725744,0.15449829,118400.0,118390.0,0.26395729]
[1753859726398,0.15141829,118400.0,118390.0,0.26395729]
[1753859727523,0.15141872,118400.0,118390.0,0.26395729]
[1753859727753,0.14297278,118400.0,118390.0,0.26395729]
[1753859728866,0.15141872,118400.0,118390.0,0.26395729]
[1753859729749,0.11048111,118400.0,118390.0,0.27240394]
[1753859729966,0.07399435,118400.0,118390.0,0.29603394]
[1753859730178,0.07399435,118400.0,118390.0,0.29815394]
[1753859730389,0.07399435,118400.0,118390.0,0.28970729]
[1753859731016,0.08244029,118400.0,118390.0,0.28970729]
[1753859731226,0.05964029,118400.0,118390.0,0.28970729]
[1753859731460,0.05964029,118400.0,118390.0,0.29293729]
[1753859732137,0.05964029,118400.0,118390.0,0.60158752]
[1753859732570,0.18315847,118400.0,118390.0,0.60158752]
[1753859733232,0.18317331,118400.0,118390.0,0.60158752]
[1753859733851,0.1578357,118400.0,118390.0,0.60158752]
[1753859734294,0.14299114,118400.0,118390.0,0.60158752]
[1753859734714,0.14299114,118400.0,118390.0,0.77896735]
[1753859735413,0.15143665,118400.0,118390.0,0.7705207]
[1753859735849,0.26591828,118400.0,118390.0,0.26395729]
[1753859736065,0.25747248,118400.0,118390.0,0.26395729]
[1753859736282,0.25748844,118400.0,118390.0,0.26395729]
[1753859736519,0.25440844,118400.0,118390.0,0.26395729]
[1753859736997,0.26285417,118400.0,118390.0,0.26395729]
[1753859737685,0.26879368,118400.0,118390.0,0.26395729]
[1753859738354,0.26034831,118400.0,118390.0,0.26395729]
[1753859738565,0.72410672,118400.0,118390.0,0.2139573]
[1753859738779,0.24653742,118400.0,118390.0,0.26395729]
[1753859739005,0.25498336,118400.0,118390.0,0.26395729]
[1753859739215,0.42390227,118400.0,118390.0,0.2139573]
[1753859739639,0.42390227,118400.0,118390.0,0.26395729]
[1753859740531,0.77290556,118400.0,118390.0,0.12948]
[1753859741615,0.77290556,118400.0,118390.0,0.12848]
[1753859742051,0.77390556,118400.0,118390.0,0.12848]
[1753859743180,1.08255579,118400.0,118390.0,0.12848]
[1753859743395,0.77390556,118400.0,118390.0,0.12848]
[1753859746855,0.77390582,118400.0,118390.0,0.12848]
[1753859749530,0.77390669,118400.0,118390.0,0.12848]
[1753859752628,0.56172604,118400.0,118390.0,0.15489]
[1753859752838,0.53578377,118400.0,118390.0,0.46649023]
[1753859753474,0.71314862,118400.0,118390.0,0.46649023]
[1753859753905,0.71314862,118400.0,118390.0,0.15784]
[1753859754146,0.47092677,118400.0,118390.0,0.63542341]
[1753859754357,0.48781772,118400.0,118390.0,0.49779023]
[1753859754810,0.50470925,118400.0,118390.0,0.46649023]
[1753859755451,0.66732279,118400.0,118390.0,0.15784]
[1753859755712,0.79607787,118400.0,118390.0,0.12848]
[1753859755939,1.1047281,118400.0,118390.0,0.12848]
[1753859756364,0.81207787,118400.0,118390.0,0.12848]
[1753859758265,0.80906787,118400.0,118390.0,0.12848]
[1753859760637,0.80906906,118400.0,118390.0,0.12848]
[1753859761517,0.79296906,118400.0,118390.0,0.12848]
[1753859761806,0.79296906,118400.0,118390.0,0.1529]
[1753859764899,0.77696906,118400.0,118390.0,0.1529]
[1753859765328,0.79356906,118400.0,118390.0,0.1529]
[1753859767092,0.79356906,118400.0,118390.0,0.12848]
[1753859768735,0.80986906,118400.0,118390.0,0.12848]
[1753859768914,0.80986906,118400.0,118390.0,0.1529]
[1753859769123,0.77696906,118400.0,118390.0,0.12848]
[1753859769358,0.17737969,118390.0,118380.0,0.02737]
[1753859769588,0.626957,118390.0,118380.0,0.02737]
[1753859769811,0.626957,118390.0,118380.0,0.02442]
[1753859770036,0.19428898,118380.0,118370.0,0.02737]
[1753859770289,0.56784156,118380.0,118370.0,0.02936]
[1753859770512,0.03379082,118370.0,118360.0,0.05935459]
[1753859770746,0.11615368,118370.0,118360.0,0.27442189]
[1753859770981,0.04912511,118370.0,118360.0,0.28287061]
[1753859771213,0.04067739,118370.0,118360.0,0.28287061]
[1753859771446,0.05757305,118370.0,118360.0,0.32442188]
[1753859772177,0.06602113,118370.0,118360.0,0.32442188]
[1753859772400,0.06603501,118370.0,118360.0,0.32742188]
[1753859772635,0.09356426,118370.0,118360.0,0.32742188]
[1753859772855,0.26252599,118370.0,118360.0,0.31152188]
[1753859773103,0.09356419,118370.0,118360.0,0.31997068]
[1753859773313,0.09356419,118370.0,118360.0,0.32722188]
[1753859773560,0.09356328,118370.0,118360.0,0.32722188]
[1753859773779,0.09356328,118370.0,118360.0,0.33567068]
[1753859774005,0.10201129,118370.0,118360.0,0.32722188]
[1753859774225,0.10201129,118370.0,118360.0,0.29632188]
[1753859775391,0.09356378,118370.0,118360.0,0.21184458]
[1753859775617,0.08511613,118370.0,118360.0,0.21384458]
[1753859775801,0.11186613,118370.0,118360.0,0.05588458]
[1753859776049,0.26393227,118370.0,118360.0,0.18444458]
[1753859776270,0.2793272,118370.0,118360.0,0.18444458]
[1753859776951,0.2639272,118370.0,118360.0,0.18444458]
[1753859777601,0.2796272,118370.0,118360.0,0.18444458]
[1753859778713,0.2639272,118370.0,118360.0,0.18444458]
[1753859778927,0.30617922,118370.0,118360.0,0.20891458]
[1753859779134,0.13721749,118370.0,118360.0,0.20891458]
[1753859779356,0.11260749,118370.0,118360.0,0.21405458]
[1753859779563,0.10415941,118370.0,118360.0,0.21405458]
[1753859779787,0.0851236,118370.0,118360.0,0.52270481]
[1753859780001,0.05759435,118370.0,118360.0,1.04177664]
[1753859780221,0.03221777,118370.0,118360.0,1.04872827]
[1753859780439,0.04911286,118370.0,118360.0,0.74007818]
[1753859780656,0.04066521,118370.0,118360.0,0.73162953]
[1753859780879,0.10660823,118370.0,118360.0,0.73162953]
[1753859781139,0.12350382,118370.0,118360.0,0.55420481]
[1753859781577,0.1150493,118370.0,118360.0,0.55420481]
[1753859781798,0.1150493,118370.0,118360.0,0.56265361]
[1753859782013,0.1150493,118370.0,118360.0,0.55420481]
[1753859782218,0.12349717,118370.0,118360.0,0.55420481]
[1753859782426,0.1150493,118370.0,118360.0,0.25400338]
[1753859782625,0.1150493,118370.0,118360.0,0.56265361]
[1753859783197,0.10660158,118370.0,118360.0,0.74007833]
[1753859783615,0.10660158,118370.0,118360.0,0.74852698]
[1753859783923,0.1150493,118370.0,118360.0,0.74007833]
[1753859784122,0.10660158,118370.0,118360.0,0.74007833]
[1753859784329,0.0981536,118370.0,118360.0,0.75697556]
[1753859784555,0.04065816,118370.0,118360.0,0.76542407]
[1753859784904,0.04910574,118370.0,118360.0,0.75697556]
[1753859785111,0.04065816,118370.0,118360.0,0.75697556]
[1753859785509,0.04910574,118370.0,118360.0,0.75697556]
[1753859785712,0.10575584,118370.0,118360.0,0.75697556]
[1753859785919,0.10575577,118370.0,118360.0,0.75697556]
[1753859786123,0.11420342,118370.0,118360.0,0.43987675]
[1753859786329,0.11420342,118370.0,118360.0,0.74852698]
[1753859786557,0.10575577,118370.0,118360.0,0.75697556]
[1753859787203,0.10575577,118370.0,118360.0,0.74852698]
[1753859787416,0.10575577,118370.0,118360.0,0.75697556]
[1753859787630,0.08886082,118370.0,118360.0,0.76542407]
[1753859787862,0.03221072,118370.0,118360.0,1.15855075]
[1753859788079,0.01583438,118370.0,118360.0,1.15855075]
[1753859788292,0.88731598,118390.0,118380.0,0.0318]
[1753859788542,0.90010457,118390.0,118380.0,0.64841505]
[1753859788756,0.91721223,118390.0,118380.0,0.67288505]
[1753859788978,0.9256586,118390.0,118380.0,0.66760768]
[1753859789185,0.91721223,118390.0,118380.0,0.66760768]
[1753859789394,0.57721223,118390.0,118380.0,0.49866023]
[1753859789607,0.57127599,118390.0,118380.0,0.54966022]
[1753859789807,0.59410541,118390.0,118380.0,0.54966022]
[1753859790012,0.5856589,118390.0,118380.0,0.53316022]
[1753859790203,0.5772126,118390.0,118380.0,0.72645504]
[1753859790465,0.58565897,118390.0,118380.0,0.54906022]
[1753859790677,0.5856589,118390.0,118380.0,0.54906022]
[1753859791780,0.59410534,118390.0,118380.0,0.54906022]
[1753859791996,0.60255192,118390.0,118380.0,0.54906022]
[1753859792212,0.4927353,118390.0,118380.0,0.72645504]
[1753859792398,0.4842899,118390.0,118380.0,0.73490234]
[1753859792845,0.47584375,118390.0,118380.0,0.44314635]
[1753859793086,0.47584375,118390.0,118380.0,0.75179658]
[1753859793309,0.57061551,118390.0,118380.0,0.71800767]
[1753859793521,0.57061544,118390.0,118380.0,0.71800767]
[1753859793753,0.56216914,118390.0,118380.0,0.71800767]
[1753859793970,0.54527691,118390.0,118380.0,0.73490227]
[1753859794185,0.55372306,118390.0,118380.0,0.74334942]
[1753859794416,0.55372306,118390.0,118380.0,0.7517965]
[1753859794629,0.56216943,118390.0,118380.0,0.73490234]
[1753859795704,0.56216943,118390.0,118380.0,0.72645504]
[1753859795887,0.56216929,118390.0,118380.0,0.74334957]
[1753859796087,0.55372306,118390.0,118380.0,0.75179672]
[1753859796307,0.57061566,118390.0,118380.0,0.72645504]
[1753859796528,0.58752055,118390.0,118380.0,0.24040999]
[1753859796729,0.58964055,118390.0,118380.0,0.51786022]
[1753859797393,0.61400055,118390.0,118380.0,0.20920999]
[1753859797606,0.61400055,118390.0,118380.0,0.20603999]
[1753859798040,0.76604135,118390.0,118380.0,0.20603999]
[1753859798271,0.59710817,118390.0,118380.0,0.17959999]
[1753859798686,0.76604135,118390.0,118380.0,0.20406999]
[1753859798869,0.75759498,118390.0,118380.0,0.20406999]
[1753859800932,0.77349498,118390.0,118380.0,0.17959999]
[1753859801379,0.79167498,118390.0,118380.0,0.05099999]
[1753859801589,1.13167498,118390.0,118380.0,0.001]
[1753859801834,1.44032521,118390.0,118380.0,0.1296]
[1753859802045,1.44032521,118390.0,118380.0,0.12964]
[1753859802046,1.45777423,118390.0,118380.0,0.12964]
[1753859803186,1.149124,118390.0,118380.0,0.12964]
[1753859806042,1.14911832,118390.0,118380.0,0.12964]
[1753859807373,1.54224585,118390.0,118380.0,0.1296]
[1753859807606,1.5604875,118390.0,118380.0,0.1296]
[1753859810635,1.1229875,118390.0,118380.0,0.1296]
[1753859811278,0.81433727,118390.0,118380.0,0.1296]
[1753859811512,1.1229875,118390.0,118380.0,0.1296]
[1753859812407,0.81433727,118390.0,118380.0,0.1296]
[1753859813492,0.81125727,118390.0,118380.0,0.1296]
[1753859813947,0.81125727,118390.0,118380.0,0.12216]
[1753859814365,0.81126688,118390.0,118380.0,0.12216]
[1753859814787,0.81420688,118390.0,118380.0,0.12216]
[1753859818663,0.81126688,118390.0,118380.0,0.12216]
[1753859823989,0.79616688,118390.0,118380.0,0.15201]
[1753859824192,0.65107801,118390.0,118380.0,0.16711]
[1753859824393,0.65107801,118390.0,118380.0,0.18221]
[1753859824992,0.65114371,118390.0,118380.0,0.18221]
[1753859825195,0.39532793,118390.0,118380.0,0.49086023]
[1753859825447,0.40377394,118390.0,118380.0,0.54086022]
[1753859825852,0.40377394,118390.0,118380.0,0.23220999]
[1753859826052,0.41215489,118390.0,118380.0,0.54079452]
[1753859826360,0.64921997,118390.0,118380.0,0.1821443]
[1753859826561,0.64077374,118390.0,118380.0,0.20194429]
[1753859826998,0.64287374,118390.0,118380.0,0.20194429]
[1753859827608,0.64287374,118390.0,118380.0,0.23234429]
[1753859827813,0.64077374,118390.0,118380.0,0.23234429]
[1753859828649,0.6323273,118390.0,118380.0,0.23234429]
[1753859829696,0.63233189,118390.0,118380.0,0.23234429]
[1753859829913,0.63233189,118390.0,118380.0,0.1823443]
[1753859830119,0.63233189,118390.0,118380.0,0.23234429]
[1753859832362,0.63233442,118390.0,118380.0,0.23234429]
[1753859833688,0.63233442,118390.0,118380.0,0.1823443]
[1753859833904,0.63233442,118390.0,118380.0,0.23234429]
[1753859834117,0.63233442,118390.0,118380.0,0.1823443]
[1753859834332,0.63233442,118390.0,118380.0,0.23234429]
[1753859836567,0.63233442,118390.0,118380.0,0.1823443]
[1753859836780,0.63233442,118390.0,118380.0,0.23234429]
[1753859838472,0.63233442,118390.0,118380.0,0.1823443]
[1753859838702,0.63233442,118390.0,118380.0,0.23234429]
[1753859841977,0.64078086,118390.0,118380.0,0.54099452]
[1753859842617,0.64078086,118390.0,118380.0,0.23234429]
[1753859842849,0.64078086,118390.0,118380.0,0.54099452]
[1753859843020,0.64078623,118390.0,118380.0,0.54099452]
[1753859848906,0.64078623,118390.0,118380.0,0.46386999]
[1753859851039,0.64278623,118390.0,118380.0,0.46386999]
[1753859855325,0.64278623,118390.0,118380.0,0.23234429]
[1753859855541,0.64278623,118390.0,118380.0,0.46386999]
[1753859855965,0.47185305,118390.0,118380.0,0.46386999]
[1753859856771,0.64080316,118390.0,118380.0,0.46386999]
[1753859857449,0.63235672,118390.0,118380.0,0.46386999]
[1753859857696,0.63435672,118390.0,118380.0,0.46386999]
[1753859857928,0.63435672,118390.0,118380.0,0.44856999]
[1753859858359,0.63435672,118390.0,118380.0,0.43346999]
[1753859860271,0.45497689,118390.0,118380.0,0.63341744]
[1753859860497,0.39529107,118390.0,118380.0,0.23294429]
[1753859860710,0.39529107,118390.0,118380.0,0.86494314]
[1753859860931,0.39529107,118390.0,118380.0,0.89873161]
[1753859860932,0.03839891,118390.0,118380.0,0.89873161]
[1753859861178,0.03839891,118390.0,118380.0,0.98320891]
[1753859861390,0.03839891,118390.0,118380.0,0.98320898]
[1753859861608,0.03839891,118390.0,118380.0,0.99165585]
[1753859861817,0.03839891,118390.0,118380.0,0.98320898]
[1753859862025,0.03839891,118390.0,118380.0,0.98320905]
[1753859862264,0.05563987,118390.0,118380.0,0.38116926]
[1753859862498,0.05563987,118390.0,118380.0,0.96425351]
[1753859862697,0.05563987,118390.0,118380.0,0.98959476]
[1753859862914,0.05563987,118390.0,118380.0,0.83517745]
[1753859863150,0.03839891,118390.0,118380.0,0.83517745]
[1753859863674,0.03839891,118390.0,118380.0,0.83517752]
[1753859863869,0.03839891,118390.0,118380.0,0.83517759]
[1753859864318,0.03839891,118390.0,118380.0,0.83517716]
[1753859864528,0.03839891,118390.0,118380.0,0.81828321]
[1753859864738,0.03839891,118390.0,118380.0,0.50964912]
[1753859864991,0.03839891,118390.0,118380.0,0.81828328]
[1753859865224,0.03839891,118390.0,118380.0,0.82673036]
[1753859865459,0.05898639,118390.0,118380.0,0.82673036]
[1753859865943,0.05054038,118390.0,118380.0,0.82673036]
[1753859866653,0.05898639,118390.0,118380.0,0.82673036]
[1753859866915,0.05898639,118390.0,118380.0,0.81828328]
[1753859867414,0.06743254,118390.0,118380.0,0.81828336]
[1753859867623,0.06743254,118390.0,118380.0,0.80983613]
[1753859868087,0.05898639,118390.0,118380.0,0.81828336]
[1753859868307,0.06743254,118390.0,118380.0,0.80983613]
[1753859868742,0.06743254,118390.0,118380.0,0.80138883]
[1753859868951,0.06743254,118390.0,118380.0,0.8098362]
[1753859869174,0.06743254,118390.0,118380.0,0.8182835]
[1753859870311,0.07587877,118390.0,118380.0,0.8098362]
[1753859870515,0.08432514,118390.0,118380.0,0.50396138]
[1753859870655,0.06743254,118390.0,118380.0,0.80983613]
[1753859871273,0.04090081,118390.0,118380.0,0.80983613]
[1753859871489,0.0324548,118390.0,118380.0,0.80983613]
[1753859871699,0.04090088,118390.0,118380.0,0.81828328]
[1753859872023,0.0324548,118390.0,118380.0,0.82673036]
[1753859872203,0.0324548,118390.0,118380.0,0.81828328]
[1753859872401,0.04090088,118390.0,118380.0,0.81828328]
[1753859872642,0.04090088,118390.0,118380.0,0.63244138]
[1753859873506,0.0937794,118390.0,118380.0,0.63244138]
[1753859876540,0.09377933,118390.0,118380.0,0.64088875]
[1753859876893,0.09377933,118390.0,118380.0,0.63244138]
[1753859877099,0.09377933,118390.0,118380.0,0.64088875]
[1753859877309,0.09377933,118390.0,118380.0,0.63244138]
[1753859878027,0.08533289,118390.0,118380.0,0.64088868]
[1753859878272,0.07688659,118390.0,118380.0,0.81828336]
[1753859878418,0.08530356,118390.0,118380.0,0.82673051]
[1753859878613,0.07685733,118390.0,118380.0,0.82673051]
[1753859878859,0.07685726,118390.0,118380.0,0.81828336]
[1753859879059,0.07685726,118390.0,118380.0,0.80983613]
[1753859879259,0.07685726,118390.0,118380.0,0.81828321]
[1753859879423,0.07685726,118390.0,118380.0,0.81828328]
[1753859879626,0.06841125,118390.0,118380.0,0.82673036]
[1753859879855,0.03242554,118390.0,118380.0,0.83517723]
[1753859880661,0.02376411,118390.0,118380.0,0.83517723]
[1753859882918,0.01584274,118390.0,118380.0,0.83517723]
[1753859883168,0.11606701,118400.0,118390.0,0.27467227]
[1753859883402,0.12398353,118400.0,118390.0,1.10686775]
[1753859883637,0.12398353,118400.0,118390.0,1.13302775]
[1753859884529,0.12398353,118400.0,118390.0,0.82439366]
[1753859884978,0.11606508,118400.0,118390.0,0.82439366]
[1753859885442,0.10022818,118400.0,118390.0,0.82439366]
[1753859885661,0.10022818,118400.0,118390.0,0.82539366]
[1753859888459,0.10022818,118400.0,118390.0,1.13402775]
[1753859888680,0.10022818,118400.0,118390.0,0.82539366]
[1753859889166,0.10022818,118400.0,118390.0,1.13402775]
[1753859895062,0.10022818,118400.0,118390.0,0.82539366]
[1753859895285,0.10022818,118400.0,118390.0,0.76682366]
[1753859895286,0.10236818,118400.0,118390.0,0.76682366]
[1753859895626,0.13458348,118400.0,118390.0,0.69993108]
[1753859895859,0.6853879,118400.0,118390.0,0.0854773]
[1753859896085,0.66849695,118400.0,118390.0,0.17943999]
[1753859896306,0.69220451,118400.0,118390.0,0.17943999]
[1753859896792,0.38357289,118400.0,118390.0,0.17943999]
[1753859897457,0.38357289,118400.0,118390.0,0.17843999]
[1753859898121,0.38457289,118400.0,118390.0,0.17843999]
[1753859898946,0.21565398,118400.0,118390.0,0.17843999]
[1753859902093,0.38457289,118400.0,118390.0,0.17843999]
[1753859903436,0.36086286,118400.0,118390.0,0.17843999]
[1753859905628,0.36060947,118400.0,118390.0,0.17843999]
[1753859910232,0.36905541,118400.0,118390.0,0.17843999]
[1753859910985,0.19169013,118400.0,118390.0,0.17843999]
[1753859911201,0.17557589,118400.0,118390.0,0.48707408]
[1753859911385,0.18402169,118400.0,118390.0,0.48707408]
[1753859912356,0.18402162,118400.0,118390.0,0.48707408]
[1753859912603,0.18402162,118400.0,118390.0,0.51042408]
[1753859912800,0.19246749,118400.0,118390.0,0.51042408]
[1753859913036,0.19246742,118400.0,118390.0,0.51042408]
[1753859913484,0.19246742,118400.0,118390.0,0.20178999]
[1753859913688,0.22890291,118400.0,118390.0,0.51042408]
[1753859914659,0.19246742,118400.0,118390.0,0.51042408]
[1753859915137,0.18402162,118400.0,118390.0,0.51042408]
[1753859915370,0.19246742,118400.0,118390.0,0.51042408]
[1753859915842,0.20091336,118400.0,118390.0,0.51042408]
[1753859916064,0.19246792,118400.0,118390.0,0.17843999]
[1753859916287,0.22974801,118400.0,118390.0,0.17843999]
[1753859916953,0.39866692,118400.0,118390.0,0.17843999]
[1753859917203,0.39022126,118400.0,118390.0,0.17843999]
[1753859917435,0.38177553,118400.0,118390.0,0.17843999]
[1753859918066,0.37332973,118400.0,118390.0,0.17843999]
[1753859920905,0.38177546,118400.0,118390.0,0.20178999]
[1753859921079,0.38177546,118400.0,118390.0,0.51042408]
[1753859921584,0.38177546,118400.0,118390.0,0.20178999]
[1753859921788,0.36637546,118400.0,118390.0,0.20390999]
[1753859923333,0.37342973,118400.0,118390.0,0.17843999]
[1753859924185,0.37342973,118400.0,118390.0,0.20178999]
[1753859924961,0.37342973,118400.0,118390.0,0.43328986]
[1753859925156,0.37342973,118400.0,118390.0,0.17843999]
[1753859925411,0.37342973,118400.0,118390.0,0.40993986]
[1753859927349,0.37342973,118400.0,118390.0,0.20178999]
[1753859927567,0.37342973,118400.0,118390.0,0.43328986]
[1753859928920,0.37937773,118400.0,118390.0,0.43328986]
[1753859930218,0.63153662,118400.0,118390.0,0.17843999]
[1753859930430,0.97153662,118400.0,118390.0,0.17843999]
[1753859930665,0.17737983,118390.0,118380.0,0.02719]
[1753859930882,0.32562513,118390.0,118380.0,0.20243999]
[1753859931299,0.32562513,118390.0,118380.0,0.43393986]
[1753859931511,0.32562513,118390.0,118380.0,0.17843999]
[1753859931938,0.32562513,118390.0,118380.0,0.17943999]
[1753859932460,0.34940962,118390.0,118380.0,0.17943999]
[1753859932693,0.34940774,118390.0,118380.0,0.17943999]
[1753859932903,0.35785418,118390.0,118380.0,0.17943999]
[1753859933281,0.35785418,118390.0,118380.0,0.41093986]
[1753859933479,0.35785418,118390.0,118380.0,0.43493986]
[1753859933927,0.59835663,118390.0,118380.0,0.12944]
[1753859934148,0.36685676,118390.0,118380.0,0.17943999]
[1753859934557,0.36685676,118390.0,118380.0,0.41093986]
[1753859934962,0.36685676,118390.0,118380.0,0.43493986]
[1753859935366,0.36685553,118390.0,118380.0,0.43493986]
[1753859935663,0.36020197,118390.0,118380.0,0.43493986]
[1753859936543,0.34275295,118390.0,118380.0,0.43699986]
[1753859937250,0.35885295,118390.0,118380.0,0.38699987]
[1753859937501,0.35885295,118390.0,118380.0,0.43493986]
[1753859938243,0.35884537,118390.0,118380.0,0.43493986]
[1753859938700,0.36784795,118390.0,118380.0,0.12844]
[1753859938956,0.37105795,118390.0,118380.0,0.35993987]
[1753859939360,0.36784795,118390.0,118380.0,0.35993987]
[1753859939569,0.36884795,118390.0,118380.0,0.35993987]
[1753859939778,0.36884795,118390.0,118380.0,0.12844]
[1753859940107,0.36884795,118390.0,118380.0,0.35993987]
[1753859940568,0.36884795,118390.0,118380.0,0.38393987]
[1753859940998,0.35274795,118390.0,118380.0,0.43393986]
[1753859941212,0.35274795,118390.0,118380.0,0.43921986]
[1753859942692,0.35274795,118390.0,118380.0,0.20771999]
[1753859942908,0.35274795,118390.0,118380.0,0.1545]
[1753859943133,0.36804795,118390.0,118380.0,0.38599987]
[1753859943346,0.36804795,118390.0,118380.0,0.1545]
[1753859943798,0.36804795,118390.0,118380.0,0.38599987]
[1753859944070,0.31213795,118390.0,118380.0,0.43599986]
[1753859944285,0.31213795,118390.0,118380.0,0.43921986]
[1753859945832,0.31213795,118390.0,118380.0,0.15772]
[1753859946274,0.31213795,118390.0,118380.0,0.38921987]
[1753859946507,0.36874795,118390.0,118380.0,0.38599987]
[1753859946735,0.31213795,118390.0,118380.0,0.38921987]
[1753859947172,0.31213795,118390.0,118380.0,0.43921986]
[1753859947385,0.31213795,118390.0,118380.0,0.20771999]
[1753859947600,0.31213795,118390.0,118380.0,0.43921986]
[1753859948046,0.22555065,118390.0,118380.0,0.38921987]
[1753859948251,0.22555065,118390.0,118380.0,0.43921986]
[1753859948462,0.22555065,118390.0,118380.0,0.20771999]
[1753859948679,0.22555065,118390.0,118380.0,0.43921986]
[1753859948866,0.22555065,118390.0,118380.0,0.38921987]
[1753859949113,0.31002795,118390.0,118380.0,0.43921986]
[1753859949529,0.31002795,118390.0,118380.0,0.38921987]
[1753859949734,0.31002795,118390.0,118380.0,0.43921986]
[1753859950372,0.31002795,118390.0,118380.0,0.38921987]
[1753859950810,0.31002795,118390.0,118380.0,0.43921986]
[1753859950998,0.22555065,118390.0,118380.0,0.43921986]
[1753859951425,0.22554933,118390.0,118380.0,0.43921986]
[1753859951871,0.22554933,118390.0,118380.0,0.20771999]
[1753859952091,0.22554933,118390.0,118380.0,0.43921986]
[1753859952298,0.23399452,118390.0,118380.0,0.43921986]
[1753859952521,0.31847182,118390.0,118380.0,0.43921986]
[1753859955646,0.31847182,118390.0,118380.0,0.67071973]
[1753859956115,0.31847182,118390.0,118380.0,0.20771999]
[1753859956340,0.31847182,118390.0,118380.0,0.67071973]
[1753859957271,0.31002538,118390.0,118380.0,0.38921987]
[1753859957519,0.31002538,118390.0,118380.0,0.43921986]
[1753859957770,0.31002538,118390.0,118380.0,0.38921987]
[1753859958205,0.31002538,118390.0,118380.0,0.43921986]
[1753859958428,0.22554808,118390.0,118380.0,0.43921986]
[1753859958675,0.05661455,118390.0,118380.0,0.43921986]
[1753859958909,0.06506099,118390.0,118380.0,0.43921986]
[1753859959170,0.06506063,118390.0,118380.0,0.43921986]
[1753859959500,0.06506319,118390.0,118380.0,0.43921986]
[1753859960029,0.14954049,118390.0,118380.0,0.43921986]
[1753859960278,0.15798693,118390.0,118380.0,0.43921986]
[1753859960514,0.14954049,118390.0,118380.0,0.20771999]
[1753859960714,0.15798686,118390.0,118380.0,0.43921986]
[1753859962223,0.14954049,118390.0,118380.0,0.43921986]
[1753859962447,0.04817081,118390.0,118380.0,0.84811448]
[1753859962653,0.04817081,118390.0,118380.0,0.86331455]
[1753859962865,0.05661689,118390.0,118380.0,0.86331455]
[1753859963086,0.04817081,118390.0,118380.0,0.86331455]
[1753859963298,0.05661682,118390.0,118380.0,0.86331455]
[1753859963509,0.05661682,118390.0,118380.0,0.87831455]
[1753859963729,0.05661682,118390.0,118380.0,0.88676185]
[1753859963940,0.05661682,118390.0,118380.0,0.87831455]
[1753859964419,0.05661682,118390.0,118380.0,0.88676185]
[1753859964631,0.05661682,118390.0,118380.0,0.87831455]
[1753859965051,0.0735092,118390.0,118380.0,0.87831455]
[1753859965251,0.10083245,118390.0,118380.0,0.87831455]
[1753859965667,0.10927889,118390.0,118380.0,0.86986718]
[1753859965884,0.10083245,118390.0,118380.0,0.70091973]
[1753859966315,0.10927889,118390.0,118380.0,0.70091973]
[1753859966528,0.10083245,118390.0,118380.0,0.70091973]
[1753859966745,0.10083245,118390.0,118380.0,0.67071973]
[1753859966969,0.10927889,118390.0,118380.0,0.67071973]
[1753859967864,0.10083245,118390.0,118380.0,0.67071973]
[1753859968071,0.10927889,118390.0,118380.0,0.67071973]
[1753859968306,0.10083245,118390.0,118380.0,0.67071973]
[1753859968810,0.10927882,118390.0,118380.0,0.67071973]
[1753859969214,0.09238615,118390.0,118380.0,0.83966718]
[1753859969416,0.09238615,118390.0,118380.0,0.38511474]
[1753859969626,0.10083245,118390.0,118380.0,0.37666744]
[1753859969830,0.10083245,118390.0,118380.0,0.83966718]
[1753859969976,0.1008323,118390.0,118380.0,0.83966718]
[1753859970411,0.1092786,118390.0,118380.0,0.83966718]
[1753859970789,0.11772497,118390.0,118380.0,0.83966718]
[1753859971214,0.11772497,118390.0,118380.0,0.67071973]
[1753859971417,0.10927896,118390.0,118380.0,0.43921986]
[1753859971625,0.1177254,118390.0,118380.0,0.43921986]
[1753859972786,0.10927896,118390.0,118380.0,0.43921986]
[1753859972988,0.10927896,118390.0,118380.0,0.67071973]
[1753859973473,0.11772547,118390.0,118380.0,0.67071973]
[1753859973683,0.10927896,118390.0,118380.0,0.67071973]
[1753859974802,0.10927896,118390.0,118380.0,0.31922723]
[1753859975017,0.10083259,118390.0,118380.0,0.61657468]
[1753859975244,0.10083259,118390.0,118380.0,0.37662744]
[1753859975447,0.10083259,118390.0,118380.0,0.60812731]
[1753859976083,0.10083259,118390.0,118380.0,0.83962718]
[1753859976517,0.10083259,118390.0,118380.0,0.84807455]
[1753859976723,0.10083259,118390.0,118380.0,0.83962718]
[1753859976933,0.10083259,118390.0,118380.0,0.60812731]
[1753859977143,0.09343197,118390.0,118380.0,0.43917986]
[1753859977345,0.10929365,118390.0,118380.0,0.43917986]
[1753859978826,0.10929358,118390.0,118380.0,0.43917986]
[1753859979180,0.10929358,118390.0,118380.0,0.44762723]
[1753859979562,0.10084721,118390.0,118380.0,0.43917986]
[1753859979816,0.03073641,118390.0,118380.0,1.0835456]
[1753859980040,0.02479262,118390.0,118380.0,0.98044587]
[1753859980246,0.02479262,118390.0,118380.0,0.97199886]
[1753859980441,0.02479262,118390.0,118380.0,0.98044587]
[1753859980643,0.02530783,118390.0,118380.0,0.98044587]
[1753859980847,0.02478875,118390.0,118380.0,0.98044587]
[1753859981052,0.02478875,118390.0,118380.0,0.98889281]
[1753859981254,0.03323476,118390.0,118380.0,0.98889281]
[1753859981547,0.03323476,118390.0,118380.0,0.97199886]
[1753859981704,0.04168099,118390.0,118380.0,0.97199893]
[1753859982071,0.03323476,118390.0,118380.0,0.98044601]
[1753859982330,0.04168084,118390.0,118380.0,0.98044601]
[1753859982899,0.04168084,118390.0,118380.0,0.98889302]
[1753859983525,0.04166698,118390.0,118380.0,0.98044601]
[1753859983750,0.04166698,118390.0,118380.0,0.98889302]
[1753859983950,0.04166698,118390.0,118380.0,0.98044601]
[1753859984155,0.04166698,118390.0,118380.0,0.98889302]
[1753859984777,0.04166698,118390.0,118380.0,0.98044601]
[1753859985013,0.04166698,118390.0,118380.0,0.98889302]
[1753859985349,0.04166698,118390.0,118380.0,0.98044601]
[1753859985545,0.05011313,118390.0,118380.0,0.98044601]